fUST/lending_fUST_20251006
["ID","MTS","AMOUNT","RATE_DAILY","PERIOD"]
[389496482,1759683049588,-500.0,0.00016986,2]
[389496483,1759683049597,-2842.52,0.00016986,2]
[389496484,1759683049606,-500.0,0.00016986,2]
[389496485,1759683049614,-500.0,0.00016986,2]
[389496486,1759683049623,-500.0,0.00016986,2]
[389496487,1759683049632,-569.08,0.00016986,2]
[389496488,1759683049641,-500.0,0.00016986,2]
[389496489,1759683049650,-500.0,0.00016986,2]
[389496490,1759683049659,-500.0,0.00016986,2]
[389496491,1759683049668,-500.0,0.00016986,2]
[389496492,1759683049677,-500.0,0.00016986,2]
[389496493,1759683049686,-500.0,0.00016986,2]
[389496494,1759683049695,-432.48453978,0.00016986,2]
[389496495,1759683049704,-500.0,0.00016986,2]
[389496496,1759683049712,-905.39,0.00016986,2]
[389496497,1759683049721,-1559.51,0.00016986,2]
[389496498,1759683049730,-863.89,0.00016986,2]
[389496499,1759683049739,-727.65,0.00016986,2]
[389496500,1759683049747,-500.0,0.00016986,2]
[389496501,1759683049756,-500.0,0.00016986,2]
[389496502,1759683049765,-500.0,0.00016986,2]
[389496503,1759683049774,-500.0,0.00016986,2]
[389496504,1759683049783,-951.46,0.00016986,2]
[389496505,1759683049791,-500.0,0.00016986,2]
[389496506,1759683049801,-500.0,0.00016986,2]
[389496507,1759683049810,-500.0,0.00016986,2]
[389496508,1759683049819,-500.0,0.00016986,2]
[389496509,1759683049827,-500.0,0.00016986,2]
[389496510,1759683049835,-500.0,0.00016986,2]
[389496511,1759683049844,-500.0,0.00016986,2]
[389496512,1759683049853,-500.0,0.00016986,2]
[389496513,1759683049864,-500.0,0.00016986,2]
[389496514,1759683049875,-1271.97,0.00016986,2]
[389496515,1759683049885,-500.0,0.00016986,2]
[389496516,1759683049897,-500.0,0.00016986,2]
[389496517,1759683049909,-500.0,0.00016986,2]
[389496518,1759683049921,-665.62,0.00016986,2]
[389496519,1759683049933,-665.43,0.00016986,2]
[389496520,1759683049949,-627.59,0.00016986,2]
[389496521,1759683049960,-500.0,0.00016986,2]
[389496522,1759683049978,-500.0,0.00016986,2]
[389496523,1759683049990,-3139.2,0.00016986,2]
[389496524,1759683050001,-707.99,0.00016986,2]
[389496525,1759683050014,-500.0,0.00016986,2]
[389496526,1759683050026,-577.86,0.00016986,2]
[389496527,1759683050038,-500.0,0.00016986,2]
[389496528,1759683050048,-1861.48,0.00016986,2]
[389496529,1759683050060,-500.0,0.00016986,2]
[389496530,1759683050072,-706.46,0.00016986,2]
[389496531,1759683050084,-500.0,0.00016986,2]
[389496532,1759683050098,-500.0,0.00016986,2]
[389496533,1759683050118,-1077.99,0.00016986,2]
[389496534,1759683050130,-387.56625863,0.00016986,2]
[389496535,1759683050141,-500.0,0.00016986,2]
[389496536,1759683050152,-500.0,0.00016986,2]
[389496537,1759683050164,-500.0,0.00016986,2]
[389496538,1759683050177,-500.0,0.00016986,2]
[389496539,1759683050199,-653.03,0.00016986,2]
[389496540,1759683050211,-769.59,0.00016986,2]
[389496541,1759683050224,-500.0,0.00016986,2]
[389496542,1759683050237,-500.0,0.00016986,2]
[389496543,1759683050249,-1276.47,0.00016986,2]
[389496544,1759683050262,-500.0,0.00016986,2]
[389496545,1759683050276,-690.87,0.00016986,2]
[389496546,1759683050288,-500.0,0.00016986,2]
[389496547,1759683050299,-500.0,0.00016986,2]
[389496548,1759683050310,-507.23,0.00016986,2]
[389496549,1759683050329,-500.0,0.00016986,2]
[389496550,1759683050343,-1894.19,0.00016986,2]
[389496551,1759683050355,-500.0,0.00016986,2]
[389496552,1759683050368,-500.0,0.00016986,2]
[389496553,1759683050380,-500.0,0.00016986,2]
[389496554,1759683050391,-1293.08,0.00016986,2]
[389496555,1759683050403,-761.4,0.00016986,2]
[389496556,1759683050414,-500.0,0.00016986,2]
[389496557,1759683050424,-922.24,0.00016986,2]
[389496558,1759683050436,-500.0,0.00016986,2]
[389496559,1759683050461,-1589.72,0.00016986,2]
[389496560,1759683050476,-500.0,0.00016986,2]
[389496561,1759683050489,-3451.89,0.00016986,2]
[389496562,1759683050502,-1321.69,0.00016986,2]
[389496563,1759683050515,-500.0,0.00016986,2]
[389496564,1759683050528,-500.0,0.00016986,2]
[389496565,1759683050540,-587.27,0.00016986,2]
[389496566,1759683050552,-500.0,0.00016986,2]
[389496567,1759683050565,-500.0,0.00016986,2]
[389496568,1759683050575,-500.0,0.00016986,2]
[389496569,1759683050587,-500.0,0.00016986,2]
[389496570,1759683050598,-500.0,0.00016986,2]
[389496571,1759683050610,-919.59,0.00016986,2]
[389496572,1759683050621,-586.99,0.00016986,2]
[389496573,1759683050635,-500.0,0.00016986,2]
[389496574,1759683050646,-500.0,0.00016986,2]
[389496575,1759683050656,-500.0,0.00016986,2]
[389496576,1759683050666,-500.0,0.00016986,2]
[389496577,1759683050677,-1240.25,0.00016986,2]
[389496578,1759683050689,-500.0,0.00016986,2]
[389496579,1759683050707,-1980.12,0.00016986,2]
[389496580,1759683050718,-500.0,0.00016986,2]
[389496581,1759683050728,-259.06902652,0.00016986,2]
[389496582,1759683050741,-500.0,0.00016986,2]
[389496583,1759683050753,-589.1,0.00016986,2]
[389496584,1759683050763,-500.0,0.00016986,2]
[389496585,1759683050773,-690.9,0.00016986,2]
[389496586,1759683050783,-505.92,0.00016986,2]
[389496587,1759683050794,-500.0,0.00016986,2]
[389496588,1759683050805,-500.0,0.00016986,2]
[389496589,1759683050816,-500.0,0.00016986,2]
[389496590,1759683050827,-500.0,0.00016986,2]
[389496591,1759683050838,-500.0,0.00016986,2]
[389496592,1759683050848,-766.86,0.00016986,2]
[389496593,1759683050859,-500.0,0.00016986,2]
[389496594,1759683050869,-750.6,0.00016986,2]
[389496595,1759683050880,-662.6,0.00016986,2]
[389496596,1759683050891,-500.0,0.00016986,2]
[389496597,1759683050902,-500.0,0.00016986,2]
[389496598,1759683050912,-2886.56,0.00016986,2]
[389496599,1759683050922,-548.46,0.00016986,2]
[389496600,1759683050933,-878.92,0.00016986,2]
[389496601,1759683050949,-1381.99,0.00016986,2]
[389496602,1759683050960,-500.0,0.00016986,2]
[389496603,1759683050970,-500.0,0.00016986,2]
[389496604,1759683050981,-500.0,0.00016986,2]
[389496605,1759683050992,-500.0,0.00016986,2]
[389496606,1759683051005,-500.0,0.00016986,2]
[389496607,1759683051015,-500.0,0.00016986,2]
[389496608,1759683051025,-500.0,0.00016986,2]
[389496609,1759683051035,-1231.65,0.00016986,2]
[389496610,1759683051047,-500.0,0.00016986,2]
[389496611,1759683051057,-500.0,0.00016986,2]
[389496612,1759683051066,-656.49,0.00016986,2]
[389496613,1759683051076,-500.0,0.00016986,2]
[389496614,1759683051086,-500.0,0.00016986,2]
[389496615,1759683051095,-500.0,0.00016986,2]
[389496616,1759683051105,-1288.0,0.00016986,2]
[389496617,1759683051115,-500.0,0.00016986,2]
[389496618,1759683051125,-501.80597651,0.00016986,2]
[389496619,1759683051134,-500.0,0.00016986,2]
[389496620,1759683051144,-675.41,0.00016986,2]
[389496621,1759683051154,-500.0,0.00016986,2]
[389496622,1759683051164,-519.32,0.00016986,2]
[389496623,1759683051173,-828.85,0.00016986,2]
[389496624,1759683051187,-582.88294151,0.00016986,2]
[389496625,1759683051203,-843.89,0.00016986,2]
[389496626,1759683051214,-500.0,0.00016986,2]
[389496627,1759683051225,-500.0,0.00016986,2]
[389496628,1759683051236,-500.0,0.00016986,2]
[389496629,1759683051247,-1439.12,0.00016986,2]
[389496630,1759683051259,-500.0,0.00016986,2]
[389496631,1759683051270,-500.0,0.00016986,2]
[389496632,1759683051281,-1208.03,0.00016986,2]
[389496633,1759683051291,-500.0,0.00016986,2]
[389496634,1759683051301,-500.0,0.00016986,2]
[389496635,1759683051312,-500.0,0.00016986,2]
[389496636,1759683051322,-500.0,0.00016986,2]
[389496637,1759683051332,-544.74334593,0.00016986,2]
[389496638,1759683051341,-2847.73,0.00016986,2]
[389496639,1759683051353,-500.0,0.00016986,2]
[389496640,1759683051364,-500.0,0.00016986,2]
[389496641,1759683051373,-500.0,0.00016986,2]
[389496642,1759683051383,-500.0,0.00016986,2]
[389496643,1759683051393,-1201.88,0.00016986,2]
[389496644,1759683051403,-500.0,0.00016986,2]
[389496645,1759683051413,-7543.42,0.00016986,2]
[389496646,1759683051423,-500.0,0.00016986,2]
[389496647,1759683051434,-500.0,0.00016986,2]
[389496648,1759683051451,-2501.47,0.00016986,2]
[389496649,1759683051461,-340.0,0.00016986,2]
[389496650,1759683051472,-500.0,0.00016986,2]
[389496651,1759683051483,-500.0,0.00016986,2]
[389496652,1759683051493,-605.92,0.00016986,2]
[389496653,1759683051502,-2829.49,0.00016986,2]
[389496654,1759683051512,-500.0,0.00016986,2]
[389496655,1759683051521,-500.0,0.00016986,2]
[389496656,1759683051531,-7633.12,0.00016986,2]
[389496657,1759683051540,-500.0,0.00016986,2]
[389496658,1759683051549,-1955.89,0.00016986,2]
[389496659,1759683051561,-500.0,0.00016986,2]
[389496660,1759683051570,-500.0,0.00016986,2]
[389496661,1759683051581,-500.0,0.00016986,2]
[389496662,1759683051591,-1524.42,0.00016986,2]
[389496663,1759683051602,-1078.1,0.00016986,2]
[389496664,1759683051612,-500.0,0.00016986,2]
[389496665,1759683051622,-2430.6,0.00016986,2]
[389496666,1759683051632,-1566.87,0.00016986,2]
[389496667,1759683051642,-500.0,0.00016986,2]
[389496668,1759683051652,-3661.35,0.00016986,2]
[389496669,1759683051663,-500.0,0.00016986,2]
[389496670,1759683051673,-500.0,0.00016986,2]
[389496671,1759683051684,-5648.74,0.00016986,2]
[389496672,1759683051700,-500.0,0.00016986,2]
[389496673,1759683051710,-500.0,0.00016986,2]
[389496674,1759683051722,-941.56,0.00016986,2]
[389496675,1759683051732,-500.0,0.00016986,2]
[389496676,1759683051742,-2793.01,0.00016986,2]
[389496677,1759683051753,-500.0,0.00016986,2]
[389496678,1759683051766,-500.0,0.00016986,2]
[389496679,1759683051777,-500.0,0.00016986,2]
[389496680,1759683051788,-500.0,0.00016986,2]
[389496681,1759683051800,-4190.87,0.00016986,2]
[389496682,1759683051812,-500.0,0.00016986,2]
[389496683,1759683051823,-712.14,0.00016986,2]
[389496684,1759683051835,-500.0,0.00016986,2]
[389496685,1759683051845,-1244.49,0.00016986,2]
[389496686,1759683051855,-500.0,0.00016986,2]
[389496687,1759683051868,-7876.79,0.00016986,2]
[389496688,1759683051879,-500.0,0.00016986,2]
[389496689,1759683051889,-1636.71,0.00016986,2]
[389496690,1759683051899,-157.19372223,0.00016986,2]
[389496691,1759683051909,-490.61689781,0.00016986,2]
[389496692,1759683051920,-500.0,0.00016986,2]
[389496693,1759683051932,-500.0,0.00016986,2]
[389496694,1759683051946,-500.0,0.00016986,2]
[389496695,1759683051957,-485.11602713,0.00016986,2]
[389496696,1759683051968,-500.0,0.00016986,2]
[389496697,1759683051977,-390.45026828,0.00016986,2]
[389496698,1759683051987,-1542.81,0.00016986,2]
[389496699,1759683051996,-691.74,0.00016986,2]
[389496700,1759683052007,-500.0,0.00016986,2]
[389496701,1759683052019,-746.45,0.00016986,2]
[389496702,1759683052029,-745.75,0.00016986,2]
[389496703,1759683052039,-864.59,0.00016986,2]
[389496704,1759683052049,-500.0,0.00016986,2]
[389496705,1759683052060,-1625.81,0.00016986,2]
[389496706,1759683052072,-481.70568787,0.00016986,2]
[389496707,1759683052082,-1276.87,0.00016986,2]
[389496708,1759683052092,-914.33,0.00016986,2]
[389496709,1759683052103,-500.0,0.00016986,2]
[389496710,1759683052113,-500.0,0.00016986,2]
[389496711,1759683052123,-1151.73,0.00016986,2]
[389496712,1759683052134,-1768.9,0.00016986,2]
[389496713,1759683052146,-4128.88,0.00016986,2]
[389496714,1759683052158,-500.0,0.00016986,2]
[389496715,1759683052170,-500.0,0.00016986,2]
[389496716,1759683052187,-601.81,0.00016986,2]
[389496717,1759683052204,-500.0,0.00016986,2]
[389496718,1759683052215,-1631.89,0.00016986,2]
[389496719,1759683052225,-2717.3,0.00016986,2]
[389496720,1759683052240,-853.97,0.00016986,2]
[389496721,1759683052250,-500.0,0.00016986,2]
[389496722,1759683052260,-500.0,0.00016986,2]
[389496723,1759683052271,-5655.4,0.00016986,2]
[389496724,1759683052283,-644.18,0.00016986,2]
[389496725,1759683052293,-851.61,0.00016986,2]
[389496726,1759683052303,-5499.36,0.00016986,2]
[389496727,1759683052313,-4498.11,0.00016986,2]
[389496728,1759683052323,-4396.27,0.00016986,2]
[389496729,1759683052333,-601.93,0.00016986,2]
[389496730,1759683052342,-500.0,0.00016986,2]
[389496731,1759683052351,-500.0,0.00016986,2]
[389496732,1759683052361,-830.43,0.00016986,2]
[389496733,1759683052370,-500.0,0.00016986,2]
[389496734,1759683052380,-500.0,0.00016986,2]
[389496735,1759683052389,-500.0,0.00016986,2]
[389496736,1759683052399,-921.77,0.00016986,2]
[389496737,1759683052408,-1181.0,0.00016986,2]
[389496738,1759683052418,-2597.62,0.00016986,2]
[389496739,1759683052427,-485.15769375,0.00016986,2]
[389496740,1759683052438,-1226.01,0.00016986,2]
[389496741,1759683052453,-1056.87,0.00016986,2]
[389496742,1759683052463,-500.0,0.00016986,2]
[389496743,1759683052473,-500.0,0.00016986,2]
[389496744,1759683052483,-1595.17,0.00016986,2]
[389496745,1759683052494,-500.0,0.00016986,2]
[389496746,1759683052504,-3567.7,0.00016986,2]
[389496747,1759683052513,-500.0,0.00016986,2]
[389496748,1759683052523,-4467.37,0.00016986,2]
[389496749,1759683052533,-500.0,0.00016986,2]
[389496750,1759683052542,-392.14126736,0.00016986,2]
[389496751,1759683052552,-500.0,0.00016986,2]
[389496752,1759683052562,-500.0,0.00016986,2]
[389496753,1759683052571,-2425.68,0.00016986,2]
[389496754,1759683052580,-533.77805364,0.00016986,2]
[389496755,1759683052589,-500.0,0.00016986,2]
[389496756,1759683052598,-509.51,0.00016986,2]
[389496757,1759683052608,-1398.29,0.00016986,2]
[389496758,1759683052617,-4931.82,0.00016986,2]
[389496759,1759683052627,-500.0,0.00016986,2]
[389496760,1759683052636,-500.0,0.00016986,2]
[389496761,1759683052645,-2146.05,0.00016986,2]
[389496762,1759683052654,-2006.77,0.00016986,2]
[389496763,1759683052663,-500.0,0.00016986,2]
[389496764,1759683052673,-500.0,0.00016986,2]
[389496765,1759683052682,-500.0,0.00016986,2]
[389496766,1759683052691,-1916.69,0.00016986,2]
[389496767,1759683052704,-500.0,0.00016986,2]
[389496768,1759683052713,-9096.5,0.00016986,2]
[389496769,1759683052723,-3164.66,0.00016986,2]
[389496770,1759683052732,-500.0,0.00016986,2]
[389496771,1759683052742,-1132.36,0.00016986,2]
[389496772,1759683052751,-593.97,0.00016986,2]
[389496773,1759683052760,-500.0,0.00016986,2]
[389496774,1759683052770,-500.0,0.00016986,2]
[389496775,1759683052780,-500.0,0.00016986,2]
[389496776,1759683052789,-1024.56,0.00016986,2]
[389496777,1759683052799,-703.22,0.00016986,2]
[389496778,1759683052808,-500.0,0.00016986,2]
[389496779,1759683052818,-487.24247129,0.00016986,2]
[389496780,1759683052827,-500.0,0.00016986,2]
[389496781,1759683052836,-500.0,0.00016986,2]
[389496782,1759683052845,-1118.02,0.00016986,2]
[389496783,1759683052855,-500.0,0.00016986,2]
[389496784,1759683052864,-500.0,0.00016986,2]
[389496785,1759683052873,-500.0,0.00016986,2]
[389496786,1759683052882,-1995.61,0.00016986,2]
[389496787,1759683052893,-2310.91,0.00016986,2]
[389496788,1759683052902,-500.0,0.00016986,2]
[389496789,1759683052912,-583.51,0.00016986,2]
[389496790,1759683052921,-500.0,0.00016986,2]
[389496791,1759683052931,-741.26,0.00016986,2]
[389496792,1759683052940,-4044.23,0.00016986,2]
[389496793,1759683052956,-500.0,0.00016986,2]
[389496794,1759683052965,-3420.83,0.00016986,2]
[389496795,1759683052974,-500.0,0.00016986,2]
[389496796,1759683052984,-39166.7636641,0.0001699,2]
[389496797,1759683052994,-291.6297192,0.00017001,2]
[389496798,1759683053004,-151.0,0.00017019,2]
[389496799,1759683053013,-500.0,0.00017019,2]
[389496800,1759683053023,-206.8549257,0.00017019,2]
[389496801,1759683053033,-500.0,0.00017019,2]
[389496802,1759683053043,-500.0,0.00017019,2]
[389496803,1759683053054,-500.0,0.00017019,2]
[389496804,1759683053063,-151.0,0.00017019,2]
[389496805,1759683053072,-500.0,0.00017019,2]
[389496806,1759683053082,-151.0,0.00017019,2]
[389496807,1759683053091,-500.0,0.00017019,2]
[389496808,1759683053101,-1752.0,0.00017019,2]
[389496809,1759683053110,-151.0,0.00017019,2]
[389496810,1759683053119,-500.0,0.00017019,2]
[389496811,1759683053129,-151.0,0.00017019,2]
[389496812,1759683053140,-500.0,0.00017019,2]
[389496813,1759683053151,-151.0,0.00017019,2]
[389496814,1759683053161,-151.0,0.00017019,2]
[389496815,1759683053171,-500.0,0.00017019,2]
[389496816,1759683053184,-500.0,0.00017019,2]
[389496817,1759683053196,-500.0,0.00017019,2]
[389496818,1759683053206,-500.0,0.00017019,2]
[389496819,1759683053216,-500.0,0.00017019,2]
[389496820,1759683053227,-151.0,0.00017019,2]
[389496821,1759683053237,-500.0,0.00017019,2]
[389496822,1759683053246,-151.0,0.00017019,2]
[389496823,1759683053256,-500.0,0.00017019,2]
[389496824,1759683053266,-151.0,0.00017019,2]
[389496825,1759683053276,-151.0,0.00017019,2]
[389496826,1759683053286,-151.0,0.00017019,2]
[389496827,1759683053295,-151.0,0.00017019,2]
[389496828,1759683053305,-500.0,0.00017019,2]
[389496829,1759683053314,-500.0,0.00017019,2]
[389496830,1759683053325,-500.0,0.00017019,2]
[389496831,1759683053335,-19292.2273969,0.0001715,2]
[389496832,1759683053345,-168.3888056,0.0001715,2]
[389496833,1759683053355,-383.9315433,0.00017157,2]
[389496834,1759683053364,-1534.19044701,0.00017157,2]
[389496835,1759683053374,-777.39518924,0.00017157,2]
[389496836,1759683053384,-3106.47117621,0.00017157,2]
[389496837,1759683053394,-345.73647251,0.00017157,2]
[389496838,1759683053403,-1381.56294416,0.00017157,2]
[389496839,1759683053413,-13730.07619355,0.00017193,2]
[389496840,1759683053424,-500.0,0.0001726,2]
[389496841,1759683053434,-1462.89,0.0001726,2]
[389496842,1759683053446,-500.0,0.0001726,2]
[389496843,1759683053457,-500.0,0.0001726,2]
[389496844,1759683053468,-500.0,0.0001726,2]
[389496845,1759683053479,-500.0,0.0001726,2]
[389496846,1759683053489,-500.0,0.0001726,2]
[389496847,1759683053499,-500.0,0.0001726,2]
[389496848,1759683053510,-500.0,0.0001726,2]
[389496849,1759683053521,-500.0,0.0001726,2]
[389496850,1759683053531,-274.16603452,0.0001726,2]
[389496851,1759683053542,-500.0,0.0001726,2]
[389496852,1759683053553,-500.0,0.0001726,2]
[389496853,1759683053565,-500.0,0.0001726,2]
[389496854,1759683053575,-500.0,0.0001726,2]
[389496855,1759683053586,-607.69,0.0001726,2]
[389496856,1759683053598,-855.9,0.0001726,2]
[389496857,1759683053611,-500.0,0.0001726,2]
[389496858,1759683053622,-500.0,0.0001726,2]
[389496859,1759683053633,-500.0,0.0001726,2]
[389496860,1759683053646,-769.36,0.0001726,2]
[389496861,1759683053658,-432.46,0.0001726,2]
[389496862,1759683053669,-500.0,0.0001726,2]
[389496863,1759683053682,-500.0,0.0001726,2]
[389496864,1759683053698,-500.0,0.0001726,2]
[389496865,1759683053709,-500.0,0.0001726,2]
[389496866,1759683053721,-500.0,0.0001726,2]
[389496867,1759683053733,-500.0,0.0001726,2]
[389496868,1759683053745,-500.0,0.0001726,2]
[389496869,1759683053756,-500.0,0.0001726,2]
[389496870,1759683053767,-500.0,0.0001726,2]
[389496871,1759683053779,-994.94,0.0001726,2]
[389496872,1759683053791,-159.65,0.0001726,2]
[389496873,1759683053803,-500.0,0.0001726,2]
[389496874,1759683053814,-500.0,0.0001726,2]
[389496875,1759683053825,-472.19532637,0.0001726,2]
[389496876,1759683053836,-500.0,0.0001726,2]
[389496877,1759683053847,-500.0,0.0001726,2]
[389496878,1759683053859,-1206.92,0.0001726,2]
[389496879,1759683053871,-500.0,0.0001726,2]
[389496880,1759683053883,-500.0,0.0001726,2]
[389496881,1759683053895,-500.0,0.0001726,2]
[389496882,1759683053907,-500.0,0.0001726,2]
[389496883,1759683053918,-762.91,0.0001726,2]
[389496884,1759683053928,-992.97,0.0001726,2]
[389496885,1759683053939,-500.0,0.0001726,2]
[389496886,1759683053954,-842.2,0.0001726,2]
[389496887,1759683053964,-500.0,0.0001726,2]
[389496888,1759683053975,-500.0,0.0001726,2]
[389496889,1759683053985,-500.0,0.0001726,2]
[389496890,1759683053997,-912.33,0.0001726,2]
[389496891,1759683054007,-500.0,0.0001726,2]
[389496892,1759683054019,-500.0,0.0001726,2]
[389496893,1759683054030,-500.0,0.0001726,2]
[389496894,1759683054042,-500.0,0.0001726,2]
[389496895,1759683054054,-500.0,0.0001726,2]
[389496896,1759683054066,-500.0,0.0001726,2]
[389496897,1759683054079,-500.0,0.0001726,2]
[389496898,1759683054091,-500.0,0.0001726,2]
[389496899,1759683054104,-500.0,0.0001726,2]
[389496900,1759683054115,-500.0,0.0001726,2]
[389496901,1759683054127,-500.0,0.0001726,2]
[389496902,1759683054138,-500.0,0.0001726,2]
[389496903,1759683054150,-640.99,0.0001726,2]
[389496904,1759683054164,-500.0,0.0001726,2]
[389496905,1759683054175,-636.53626543,0.0001726,2]
[389496906,1759683054187,-751.03,0.0001726,2]
[389496907,1759683054200,-424.55371047,0.0001726,2]
[389496908,1759683054214,-2842.52,0.0001726,2]
[389496909,1759683054224,-500.0,0.0001726,2]
[389496910,1759683054234,-500.0,0.0001726,2]
[389496911,1759683054244,-611.42678488,0.0001726,2]
[389496912,1759683054255,-569.08,0.0001726,2]
[389496913,1759683054265,-500.0,0.0001726,2]
[389496914,1759683054274,-500.0,0.0001726,2]
[389496915,1759683054284,-500.0,0.0001726,2]
[389496916,1759683054294,-500.0,0.0001726,2]
[389496917,1759683054305,-504.3620155,0.0001726,2]
[389496918,1759683054316,-500.0,0.0001726,2]
[389496919,1759683054328,-905.39,0.0001726,2]
[389496920,1759683054339,-1559.51,0.0001726,2]
[389496921,1759683054349,-863.89,0.0001726,2]
[389496922,1759683054359,-727.65,0.0001726,2]
[389496923,1759683054370,-500.0,0.0001726,2]
[389496924,1759683054381,-500.0,0.0001726,2]
[389496925,1759683054616,-500.0,0.0001726,2]
[389496926,1759683054634,-500.0,0.0001726,2]
[389496927,1759683054644,-951.46,0.0001726,2]
[389496928,1759683054654,-425.37789177,0.0001726,2]
[389496929,1759683054663,-500.0,0.0001726,2]
[389496930,1759683054672,-500.0,0.0001726,2]
[389496931,1759683054682,-500.0,0.0001726,2]
[389496932,1759683054695,-500.0,0.0001726,2]
[389496933,1759683054705,-500.0,0.0001726,2]
[389496934,1759683054714,-500.0,0.0001726,2]
[389496935,1759683054724,-500.0,0.0001726,2]
[389496936,1759683054734,-500.0,0.0001726,2]
[389496937,1759683054744,-1271.97,0.0001726,2]
[389496938,1759683054754,-500.0,0.0001726,2]
[389496939,1759683054764,-500.0,0.0001726,2]
[389496940,1759683054773,-500.0,0.0001726,2]
[389496941,1759683054783,-665.62,0.0001726,2]
[389496942,1759683054792,-665.43,0.0001726,2]
[389496943,1759683054801,-627.59,0.0001726,2]
[389496944,1759683054811,-500.0,0.0001726,2]
[389496945,1759683054820,-500.0,0.0001726,2]
[389496946,1759683054829,-3139.2,0.0001726,2]
[389496947,1759683054838,-707.99,0.0001726,2]
[389496948,1759683054848,-500.0,0.0001726,2]
[389496949,1759683054858,-577.86,0.0001726,2]
[389496950,1759683054867,-500.0,0.0001726,2]
[389496951,1759683054876,-1861.48,0.0001726,2]
[389496952,1759683054885,-500.0,0.0001726,2]
[389496953,1759683054894,-706.46,0.0001726,2]
[389496954,1759683054904,-500.0,0.0001726,2]
[389496955,1759683054913,-500.0,0.0001726,2]
[389496956,1759683054922,-1077.99,0.0001726,2]
[389496957,1759683054932,-500.0,0.0001726,2]
[389496958,1759683054941,-500.0,0.0001726,2]
[389496959,1759683054956,-500.0,0.0001726,2]
[389496960,1759683054966,-500.0,0.0001726,2]
[389496961,1759683054977,-653.03,0.0001726,2]
[389496962,1759683054986,-769.59,0.0001726,2]
[389496963,1759683054996,-500.0,0.0001726,2]
[389496964,1759683055007,-500.0,0.0001726,2]
[389496965,1759683055016,-1276.47,0.0001726,2]
[389496966,1759683055025,-500.0,0.0001726,2]
[389496967,1759683055035,-690.87,0.0001726,2]
[389496968,1759683055044,-500.0,0.0001726,2]
[389496969,1759683055054,-507.23,0.0001726,2]
[389496970,1759683055065,-500.0,0.0001726,2]
[389496971,1759683055075,-1894.19,0.0001726,2]
[389496972,1759683055087,-500.0,0.0001726,2]
[389496973,1759683055096,-500.0,0.0001726,2]
[389496974,1759683055106,-393.20167533,0.0001726,2]
[389496975,1759683055115,-1293.08,0.0001726,2]
[389496976,1759683055127,-761.4,0.0001726,2]
[389496977,1759683055137,-500.0,0.0001726,2]
[389496978,1759683055147,-922.24,0.0001726,2]
[389496979,1759683055157,-500.0,0.0001726,2]
[389496980,1759683055168,-1589.72,0.0001726,2]
[389496981,1759683055178,-500.0,0.0001726,2]